fUST/lending_fUST_20240404
["ID","MTS","AMOUNT","RATE_DAILY","PERIOD"]
[321416160,1712177300383,-500.0,0.00049315,120]
[321416161,1712177300406,-502.72582236,0.00049315,120]
[321416162,1712177300429,-500.0,0.00049315,120]
[321416163,1712177300452,-500.0,0.00049315,120]
[321416164,1712177300477,-576.83,0.00049315,120]
[321416165,1712177300500,-1124.87,0.00049315,120]
[321416166,1712177300524,-1124.87,0.00049315,120]
[321416167,1712177300550,-1124.87,0.00049315,120]
[321416168,1712177300574,-500.0,0.00049315,120]
[321416169,1712177300598,-1124.87,0.00049315,120]
[321416170,1712177300623,-1124.87,0.00049315,120]
[321416171,1712177300647,-1124.87,0.00049315,120]
[321416172,1712177300672,-1124.87,0.00049315,120]
[321416173,1712177300697,-1124.87,0.00049315,120]
[321416174,1712177300721,-1124.87,0.00049315,120]
[321416175,1712177300746,-1124.87,0.00049315,120]
[321416176,1712177300770,-500.0,0.00049315,120]
[321416177,1712177300793,-1124.87,0.00049315,120]
[321416178,1712177300818,-1124.87,0.00049315,120]
[321416179,1712177300841,-1124.87,0.00049315,120]
[321416180,1712177300866,-1124.87,0.00049315,120]
[321416181,1712177300890,-1124.87,0.00049315,120]
[321416182,1712177300914,-1124.87,0.00049315,120]
[321416183,1712177300940,-1124.87,0.00049315,120]
[321416184,1712177300964,-1124.87,0.00049315,120]
[321416185,1712177300988,-1124.87,0.00049315,120]
[321416186,1712177301012,-1124.87,0.00049315,120]
[321416187,1712177301036,-1124.87,0.00049315,120]
[321416188,1712177301061,-1124.87,0.00049315,120]
[321416189,1712177301085,-1124.87,0.00049315,120]
[321416190,1712177301113,-1124.95172679,0.00049315,120]
[321416191,1712177301136,-500.0,0.00049315,120]
[321416192,1712177301161,-500.0,0.00049315,120]
[321416193,1712177301186,-500.0,0.00049315,120]
[321416194,1712177301214,-500.0,0.00049315,120]
[321416195,1712177301240,-500.0,0.00049315,120]
[321416196,1712177301265,-500.0,0.00049315,120]
[321416197,1712177301289,-500.0,0.00049315,120]
[321416198,1712177301313,-500.0,0.00049315,120]
[321416199,1712177301336,-294.9189172,0.00049315,120]
[321416200,1712177301361,-500.0,0.00049315,120]
[321416201,1712177301386,-500.0,0.00049315,120]
[321416202,1712177301411,-500.0,0.00049315,120]
[321416203,1712177301525,-499.83601564,0.00049315,120]
[321416204,1712177301556,-500.0,0.00049315,120]
[321416205,1712177301581,-158.27516092,0.00049315,120]
[321416206,1712177301608,-500.0,0.00049315,120]
[321416207,1712177301632,-774.76,0.00049315,120]
[321416208,1712177301656,-774.76,0.00049315,120]
[321416209,1712177301680,-774.76,0.00049315,120]
[321416210,1712177301706,-774.76,0.00049315,120]
[321416211,1712177301730,-774.76,0.00049315,120]
[321416212,1712177301755,-774.76,0.00049315,120]
[321416213,1712177301780,-774.76,0.00049315,120]
[321416214,1712177301806,-774.76,0.00049315,120]
[321416215,1712177301830,-774.76,0.00049315,120]
[321416216,1712177301854,-774.76,0.00049315,120]
[321416217,1712177301879,-774.76,0.00049315,120]
[321416218,1712177301904,-774.76,0.00049315,120]
[321416219,1712177301929,-774.76,0.00049315,120]
[321416220,1712177301953,-774.76,0.00049315,120]
[321416221,1712177301977,-774.76,0.00049315,120]
[321416222,1712177302002,-638.27,0.00049315,120]
[321416223,1712177302026,-774.76,0.00049315,120]
[321416224,1712177302050,-774.76,0.00049315,120]
[321416225,1712177302074,-774.76,0.00049315,120]
[321416226,1712177302097,-774.76,0.00049315,120]
[321416227,1712177302124,-774.76,0.00049315,120]
[321416228,1712177302150,-441.4442263,0.00049315,120]
[321416229,1712177302174,-774.76,0.00049315,120]
[321416230,1712177302199,-774.76,0.00049315,120]
[321416231,1712177302223,-774.76,0.00049315,120]
[321416232,1712177302247,-774.88618226,0.00049315,120]
[321416233,1712177302271,-500.0,0.00049315,120]
[321416234,1712177302295,-500.0,0.00049315,120]
[321416235,1712177302319,-500.0,0.00049315,120]
[321416236,1712177302343,-500.0,0.00049315,120]
[321416237,1712177302368,-500.0,0.00049315,120]
[321416238,1712177302391,-311.69649314,0.00049315,120]
[321416239,1712177302414,-435.07040669,0.00049315,120]
[321416240,1712177302440,-500.0,0.00049315,120]
[321416241,1712177302464,-500.0,0.00049315,120]
[321416242,1712177302489,-500.0,0.00049315,120]
[321416243,1712177302515,-500.0,0.00049315,120]
[321416244,1712177302541,-500.0,0.00049315,120]
[321416245,1712177302566,-550.24,0.00049315,120]
[321416246,1712177302591,-500.0,0.00049315,120]
[321416247,1712177302616,-503.41106186,0.00049315,120]
[321416248,1712177302639,-500.0,0.00049315,120]
[321416249,1712177302665,-500.0,0.00049315,120]
[321416250,1712177302689,-500.0,0.00049315,120]
[321416251,1712177302714,-500.0,0.00049315,120]
[321416252,1712177302739,-500.0,0.00049315,120]
[321416253,1712177302764,-500.0,0.00049315,120]
[321416254,1712177302788,-277.35060206,0.00049315,120]
[321416255,1712177302813,-150.0,0.00049815,60]
[321416256,1712177302838,-8505.47769372,0.0005,120]
[321416257,1712177302861,-229.48921737,0.0005,120]
[321416258,1712177302885,-500.0,0.0005,120]
[321416259,1712177302909,-150.0,0.00050815,60]
[321416260,1712177302934,-2658.0289116,0.00051,60]
[321416261,1712177302959,-10000.0,0.00051,60]
[321416262,1712177302983,-15827.99692716,0.00051,60]
[321416263,1712177303008,-797.51970458,0.00051,60]
[321416264,1712177303035,-200.0,0.00051435,120]
[321416265,1712177303061,-500.0,0.00052,120]
[321416266,1712177303085,-19875.39507576,0.00052,120]
[321416267,1712177303109,-2658.0,0.00052,60]
[321416268,1712177303138,-10000.0,0.00052,60]
[321416269,1712177303163,-1638.91725878,0.00052,60]
[321416315,1712177432763,-2110.69798225,0.00037577,2]
[321416316,1712177432774,-12777.4760096,0.00037578,2]
[321416317,1712177432784,-161.052631,0.0004,2]
[321416318,1712177432796,-1718.18342563,0.0004,4]
[321416319,1712177432806,-166.0,0.0004095,2]
[321416320,1712177432816,-12513.78745086,0.0004095,2]
[321416321,1712177432825,-150.0,0.00041005,2]
[321416322,1712177432835,-1297.60921199,0.00043004,11]
[321416323,1712177432844,-166.666666,0.00043574,2]
[321416324,1712177432854,-1081.47982124,0.00043684,2]
[321416325,1712177432863,-307.40877152,0.00043784,15]
[321416326,1712177432872,-166.0,0.0004395,2]
[321416327,1712177432881,-167.658928,0.00044447,2]
[321416328,1712177432891,-166.666666,0.00044762,2]
[321416329,1712177432901,-1081.47982123,0.00044988,2]
[321416330,1712177432911,-166.666666,0.0004595,2]
[321416331,1712177432921,-150.0,0.00046005,2]
[321416332,1712177432932,-1081.47982123,0.00046292,2]
[321416333,1712177432942,-933.87716819,0.00046548,4]
[321416334,1712177432952,-215.8893415,0.0004688,2]
[321416335,1712177432962,-166.666666,0.00047138,2]
[321416336,1712177432972,-1081.47982123,0.00047596,2]
[321416337,1712177432982,-198.17065663,0.00047688,7]
[321416338,1712177432991,-166.666666,0.00048326,2]
[321416339,1712177433000,-179.257887,0.00048767,2]
[321416340,1712177433010,-153.0,0.00048795,2]
[321416341,1712177433020,-306.0,0.00048795,2]
[321416342,1712177433029,-153.0,0.00048795,2]
[321416343,1712177433039,-1004.56025567,0.00048899,9]
[321416344,1712177433049,-1081.47982123,0.000489,2]
[321416345,1712177433059,-2804.78391298,0.00048999,4]
[321416346,1712177433068,-1000.0,0.00049,3]
[321416347,1712177433077,-1197.47,0.00049,2]
[321416348,1712177433086,-8103.71,0.00049,2]
[321416349,1712177433095,-6710.86984516,0.00049,30]
[321416350,1712177433105,-3363.99318723,0.00049,120]
[321416351,1712177433115,-203.97890923,0.00049314,120]
[321416352,1712177433124,-500.0,0.00049315,14]
[321416353,1712177433133,-502.54055236,0.00049315,7]
[321416354,1712177433144,-4166.62,0.00049315,5]
[321416355,1712177433155,-4166.62,0.00049315,5]
[321416356,1712177433164,-4166.62,0.00049315,5]
[321416357,1712177433173,-4166.62,0.00049315,5]
[321416358,1712177433183,-4166.62,0.00049315,5]
[321416359,1712177433193,-4166.62,0.00049315,5]
[321416360,1712177433202,-3283.71019677,0.00049315,5]
[321416438,1712177438654,-882.90980323,0.00049315,5]
[321416441,1712177438664,-2894.56755512,0.00049315,5]
[321416452,1712177438713,-1272.05244488,0.00049315,5]
[321416455,1712177438723,-1262.73153948,0.00049315,5]
[321416682,1712177443161,-2903.88846052,0.00049315,5]
[321416685,1712177443171,-121.84153948,0.00049315,5]
[321416691,1712177443223,-4044.77846052,0.00049315,5]
[321416693,1712177443236,-4166.62,0.00049315,5]
[321416705,1712177443341,-1688.60153948,0.00049315,5]
[321416739,1712177443797,-2478.01846052,0.00049315,5]
[321416740,1712177443808,-3228.73141843,0.00049315,5]
[321416741,1712177443820,-937.88858157,0.00049315,5]
[321416742,1712177443829,-4062.11141843,0.00049315,5]
[321416745,1712177444042,-104.50858157,0.00049315,5]
[321416746,1712177444052,-1704.65085857,0.00049315,5]
[321416747,1712177444063,-2461.96914143,0.00049315,5]
[321416748,1712177444072,-4166.62,0.00049315,5]
[321416749,1712177444082,-4166.62,0.00049315,5]
[321416750,1712177444098,-4166.62,0.00049315,5]
[321416751,1712177444108,-4166.62,0.00049315,5]
[321416752,1712177444117,-4166.62,0.00049315,5]
[321416753,1712177444126,-4166.62,0.00049315,5]
[321416754,1712177444136,-4166.62,0.00049315,5]
[321416755,1712177444147,-4166.62,0.00049315,5]
[321416756,1712177444157,-4166.62636849,0.00049315,5]
[321416757,1712177444167,-151.0,0.00049315,7]
[321416758,1712177444176,-151.0,0.00049315,7]
[321416759,1712177444186,-151.0,0.00049315,7]
[321416760,1712177444196,-151.0,0.00049315,7]
[321416761,1712177444206,-151.0,0.00049315,7]
[321416762,1712177444215,-238.556224,0.00049315,7]
[321416763,1712177444224,-151.0,0.00049315,7]
[321416764,1712177444235,-151.0,0.00049315,7]
[321416765,1712177444244,-151.0,0.00049315,7]
[321416766,1712177444252,-151.0,0.00049315,7]
[321416767,1712177444262,-151.0,0.00049315,7]
[321416768,1712177444271,-151.0,0.00049315,7]
[321416769,1712177444280,-151.0,0.00049315,7]
[321416770,1712177444289,-151.0,0.00049315,7]
[321416771,1712177444299,-151.0,0.00049315,7]
[321416772,1712177444309,-151.0,0.00049315,7]
[321416773,1712177444318,-151.0,0.00049315,7]
[321416774,1712177444327,-151.0,0.00049315,7]
[321416775,1712177444336,-152.343328,0.00049315,7]
[321416776,1712177444345,-1000.0,0.00049315,7]
[321416777,1712177444354,-1000.0,0.00049315,7]
[321416778,1712177444363,-1000.0,0.00049315,7]
[321416779,1712177444372,-1000.0,0.00049315,7]
[321416780,1712177444381,-1000.0,0.00049315,7]
[321416781,1712177444390,-1000.0,0.00049315,7]
[321416782,1712177444399,-1000.0,0.00049315,7]
[321416783,1712177444408,-1000.0,0.00049315,7]
[321416784,1712177444417,-1000.0,0.00049315,7]
[321416785,1712177444426,-1000.0,0.00049315,7]
[321416786,1712177444435,-1000.0,0.00049315,7]
[321416787,1712177444445,-1000.0,0.00049315,7]
[321416788,1712177444454,-1000.0,0.00049315,7]
[321416789,1712177444463,-1000.0,0.00049315,7]
[321416790,1712177444473,-1000.0,0.00049315,7]
[321416791,1712177444482,-160.27037106,0.00049315,7]
[321416792,1712177444492,-500.0,0.00049315,120]
[321416793,1712177444501,-500.0,0.00049315,120]
[321416794,1712177444510,-500.0,0.00049315,120]
[321416795,1712177444520,-500.0,0.00049315,120]
[321416796,1712177444529,-500.0,0.00049315,120]
[321416797,1712177444538,-70.21456708,0.00049315,120]
[321416838,1712177446854,-429.78543292,0.00049315,120]
[321416839,1712177446863,-500.0,0.00049315,120]
[321416840,1712177446873,-500.0,0.00049315,120]
[321416841,1712177446881,-500.0,0.00049315,120]
[321416842,1712177446891,-500.0,0.00049315,120]
[321416843,1712177446901,-500.0,0.00049315,120]
[321416844,1712177446912,-500.0,0.00049315,120]
[321416845,1712177446922,-500.0,0.00049315,120]
[321416846,1712177446933,-500.0,0.00049315,120]
[321416847,1712177446942,-500.0,0.00049315,120]
[321416848,1712177446952,-500.0,0.00049315,120]
[321416849,1712177446961,-500.0,0.00049315,120]
[321416850,1712177446971,-500.0,0.00049315,120]
[321416851,1712177446980,-500.0,0.00049315,120]
[321416852,1712177446990,-500.0,0.00049315,120]
[321416853,1712177447000,-500.0,0.00049315,120]
[321416854,1712177447009,-500.0,0.00049315,120]
[321416855,1712177447018,-500.0,0.00049315,120]
[321416856,1712177447027,-500.0,0.00049315,120]
[321416857,1712177447036,-500.0,0.00049315,120]
[321416858,1712177447046,-500.0,0.00049315,120]
[321416859,1712177447056,-500.0,0.00049315,120]
[321416860,1712177447065,-406.33621722,0.00049315,120]
[321416861,1712177447075,-500.0,0.00049315,120]
[321416862,1712177447087,-500.0,0.00049315,120]
[321416863,1712177447097,-515.88343596,0.00049315,120]
[321416864,1712177447107,-500.0,0.00049315,120]
[321416865,1712177447116,-500.0,0.00049315,120]
[321416866,1712177447126,-500.0,0.00049315,120]
[321416867,1712177447135,-500.0,0.00049315,120]
[321416868,1712177447145,-500.0,0.00049315,120]
[321416869,1712177447156,-336.35193245,0.00049315,120]
[321416870,1712177447165,-500.0,0.00049315,120]
[321416871,1712177447174,-500.0,0.00049315,120]
[321416872,1712177447183,-597.18221514,0.00049315,120]
[321416873,1712177447192,-500.0,0.00049315,120]
[321416874,1712177447201,-500.0,0.00049315,120]
[321416875,1712177447210,-500.0,0.00049315,120]
[321416876,1712177447219,-500.0,0.00049315,120]
[321416877,1712177447229,-500.0,0.00049315,120]
[321416878,1712177447239,-500.0,0.00049315,120]
[321416879,1712177447248,-500.0,0.00049315,120]
[321416880,1712177447257,-234.15948978,0.00049315,120]
[321416881,1712177447266,-500.0,0.00049315,120]
[321416882,1712177447275,-500.0,0.00049315,120]
[321416883,1712177447284,-500.0,0.00049315,120]
[321416884,1712177447293,-500.0,0.00049315,120]
[321416885,1712177447302,-500.0,0.00049315,120]
[321416886,1712177447312,-500.0,0.00049315,120]
[321416887,1712177447321,-150.9,0.00049315,120]
[321416888,1712177447330,-500.0,0.00049315,120]
[321416889,1712177447339,-500.0,0.00049315,120]
[321416890,1712177447348,-500.0,0.00049315,120]
[321416891,1712177447357,-178.5737379,0.00049315,120]
[321416892,1712177447366,-500.0,0.00049315,60]
[321416893,1712177447375,-185.28,0.00049315,60]
[321416894,1712177447384,-466.25831786,0.00049315,120]
[321416895,1712177447394,-500.0,0.00049315,120]
[321416896,1712177447403,-500.0,0.00049315,120]
[321416897,1712177447412,-500.0,0.00049315,120]
[321416898,1712177447421,-500.0,0.00049315,120]
[321416899,1712177447431,-500.0,0.00049315,120]
[321416900,1712177447440,-535.71777944,0.00049315,120]
[321416901,1712177447449,-500.0,0.00049315,120]
[321416902,1712177447458,-221.43036344,0.00049315,120]
[321416903,1712177447468,-500.0,0.00049315,120]
[321416904,1712177447478,-500.0,0.00049315,120]
[321416905,1712177447487,-500.0,0.00049315,120]
[321416906,1712177447497,-500.0,0.00049315,120]
[321416907,1712177447506,-500.0,0.00049315,120]
[321416908,1712177447516,-500.0,0.00049315,120]
[321416909,1712177447525,-500.0,0.00049315,120]
[321416910,1712177447534,-500.0,0.00049315,120]
[321416911,1712177447543,-500.0,0.00049315,120]
[321416912,1712177447552,-500.0,0.00049315,120]
[321416913,1712177447562,-500.0,0.00049315,120]
[321416914,1712177447572,-500.0,0.00049315,120]
[321416915,1712177447581,-500.0,0.00049315,120]
[321416916,1712177447590,-500.0,0.00049315,120]
[321416917,1712177447599,-500.0,0.00049315,120]
[321416918,1712177447610,-500.0,0.00049315,120]
[321416919,1712177447619,-500.0,0.00049315,120]
[321416920,1712177447628,-500.0,0.00049315,120]
[321416921,1712177447637,-500.0,0.00049315,120]
[321416922,1712177447647,-500.0,0.00049315,120]
[321416923,1712177447657,-500.0,0.00049315,120]
[321416924,1712177447667,-558.6410654,0.00049315,120]
[321416925,1712177447677,-500.0,0.00049315,120]
[321416926,1712177447686,-500.0,0.00049315,120]
[321416927,1712177447696,-151.0,0.00049315,7]
[321416928,1712177447705,-244.062565,0.00049315,7]
[321416929,1712177447715,-166.666666,0.00049514,2]
[321416930,1712177447725,-173.2223235,0.00049616,2]
[321416931,1712177447735,-153.0,0.000497,2]
[321416932,1712177447744,-507.08129936,0.0005,10]
[321416933,1712177447754,-8505.47769372,0.0005,120]
[321416934,1712177447763,-160.0,0.00050165,3]
[321416935,1712177447772,-200.0,0.00050242,120]
[321416936,1712177447782,-153.0,0.00050438,2]
[321416937,1712177447791,-153.0,0.00050438,2]
[321416938,1712177447800,-306.0,0.00050438,2]
[321416939,1712177447810,-153.0,0.00050438,2]
[321416940,1712177447820,-160.0,0.00050551,4]
[321416941,1712177447830,-161.052631,0.00050776,2]
[321416942,1712177447839,-160.0,0.00050938,5]
[321416943,1712177447849,-797.51970458,0.00051,60]
[321416944,1712177447933,-150.96980604,0.00051037,2]
[321416945,1712177447944,-192.0881675,0.0005126,2]
[321416946,1712177447954,-153.0,0.0005126,2]
[321416947,1712177447964,-160.0,0.00051325,6]
[321416948,1712177447973,-160.0,0.00051711,7]
[321416949,1712177447982,-301.93961208,0.00051894,4]
[321416950,1712177447991,-12961.41954371,0.00052,60]
[321416951,1712177448155,-1225.66319751,0.00052,60]
[321416952,1712177448164,-397.20277038,0.00052,120]
[321416953,1712177448174,-796.0,0.00052,60]
[321416954,1712177448183,-271.8991831,0.00052,4]
[321416955,1712177448193,-1589.3898266,0.00052054,120]
[321416969,1712177609806,420674.04393301,0.00043784,60]
[321416974,1712177678118,-12000.0,0.0002877,2]
[321416975,1712177678220,-12000.0,0.0002877,2]
[321416976,1712177678500,-12000.0,0.0002877,2]
[321416977,1712177678605,-12000.0,0.0002877,2]
[321416978,1712177678736,-2263.66470473,0.0002877,2]
[321416979,1712177679309,455.07387794,0.00022,2]
[321417089,1712177812777,-23978.68781333,0.00043779,60]
[321417090,1712177812801,-289.62988646,0.00043779,30]
[321417091,1712177812825,-152.37295998,0.00043779,49]
[321417092,1712177812848,-152.37295998,0.00043779,49]
[321419049,1712178234020,152.37295999,0.00043617,49]
[321419083,1712178631864,-154.98450155,0.00035418,4]
[321419085,1712178631874,-144.13199845,0.00035419,2]
[321419133,1712178632323,-125.59989955,0.00035419,2]
[321419135,1712178632331,-2807.80898399,0.00035747,4]
[321419137,1712178632340,-252.0,0.0003575,2]
[321419138,1712178632349,-2770.6534456,0.00035751,2]
[321419139,1712178632358,-169.545723,0.00035999,120]
[321419140,1712178632366,-433.81574718,0.00036258,4]
[321419141,1712178632375,-200.80874792,0.00036998,2]
[321419142,1712178632385,-502.5079188,0.00036998,2]
[321419143,1712178632393,-137.98395559,0.00036998,4]
[321419144,1712178632431,-167.00054596,0.00036998,4]
[321419145,1712178632440,-1677.17937818,0.00036998,4]
[321419146,1712178632449,-668.876525,0.00036998,4]
[321419147,1712178632458,-216.45940751,0.00036998,4]
[321419148,1712178632467,-688.89705441,0.00036998,4]
[321419149,1712178632476,-475.95078821,0.00036999,15]
[321419150,1712178632486,-501.08771909,0.00036999,15]
[321419151,1712178632498,-500.0,0.00036999,15]
[321419152,1712178632507,-2767.22886458,0.00037,2]
[321419221,1712178642242,-2110.69798225,0.00035418,2]
[321419222,1712178642251,-11012.00404988,0.00037,2]
[321419234,1712178642982,-74851.58146917,0.00037,2]
[321419235,1712178642993,-1297.60921192,0.00038254,8]
[321419236,1712178643004,-559.4457692,0.00038354,4]
[321419237,1712178643014,-26204.8929,0.00039985,30]
[321419238,1712178643024,-23830.42230115,0.0004,2]
[321419239,1712178643034,-181.208423,0.0004,2]
[321419240,1712178643045,-168.976997,0.0004,2]
[321419241,1712178643056,-6066.60691451,0.0004013,2]
[321419242,1712178643065,-150.0,0.00041,30]
[321419244,1712178643075,-166.666666,0.00041096,2]
[321419245,1712178643084,-166.666666,0.00042058,2]
[321419247,1712178643093,-166.666666,0.00043019,2]
[321419249,1712178643103,-3373.9587272,0.00043573,15]
[321419250,1712178643112,-397.20277038,0.00043617,120]
[321419251,1712178643121,-3033.23044396,0.00043625,2]
[321419252,1712178643130,-159.97597789,0.00043625,2]
[321419253,1712178643139,-166.666666,0.00043981,2]
[321419254,1712178643148,-166.666666,0.00044942,2]
[321419255,1712178643157,-12406.86243443,0.00044997,10]
[321419256,1712178643166,-2646.71924821,0.00045,3]
[321419257,1712178643175,-187541.9861059,0.00045,30]
[321419309,1712179832159,-2110.69798225,0.00039884,2]
[321419310,1712179832169,-166.666666,0.00042922,2]
[321419311,1712179832178,-269.731898,0.00043593,2]
[321419312,1712179832187,-4545.19760133,0.00043633,2]
[321419327,1712179840240,-5782.76258897,0.00043633,2]
[321419328,1712179840249,-1002.7577553,0.00044,90]
[321419329,1712179840258,-166.666666,0.00044093,2]
[321419330,1712179840266,-84.7157256,0.00044899,12]
[321419377,1712179843205,-1113.917089,0.00044899,12]
[321419378,1712179843217,-1451.34,0.000449,2]
[321419379,1712179843226,-156.53322923,0.00044998,4]
[321419380,1712179843236,-688.89705441,0.00044998,4]
[321419381,1712179843246,-216.45940751,0.00044998,4]
[321419382,1712179843256,-167.00054596,0.00044998,4]
[321419383,1712179843267,-1677.17937818,0.00044998,4]
[321419384,1712179843277,-668.876525,0.00044998,4]
[321419385,1712179843287,-1013.4829352,0.00044999,4]
[321419386,1712179843297,-214.75187961,0.00044999,120]
[321419387,1712179843306,-501.08771909,0.00044999,120]
[321419388,1712179843317,-500.0,0.00044999,120]
[321419389,1712179843327,-475.95078821,0.00044999,120]
[321419390,1712179843337,-500.0,0.00044999,120]
[321419391,1712179843347,-500.0,0.00044999,120]
[321419392,1712179843356,-206.22417899,0.00044999,120]
[321419393,1712179843365,-500.0,0.00044999,120]
[321419394,1712179843374,-73772.4626589,0.00045,30]
[321419443,1712179846152,-29656.36232765,0.00045,30]
[321419447,1712180319826,300.0,0.0002505,2]
[321419452,1712180738706,3348.03222243,0.0002505,2]
[321419472,1712181033316,-921.66731222,0.00038999,4]
[321419473,1712181033329,-593.47774582,0.00039,30]
[321419474,1712181033339,-161.052631,0.0004,2]
[321419475,1712181033348,-175.09271,0.0004,2]
[321419476,1712181033358,-26204.8929,0.00040303,30]
[321419477,1712181033367,-1350.24450039,0.000409,10]
[321419478,1712181033377,-150.0,0.00041,30]
[321419480,1712181033386,-596.2117193,0.00041836,2]
[321419482,1712181033396,-166.666666,0.00042372,2]
[321419484,1712181033405,-150.0,0.000429,2]
[321419486,1712181033416,-166.666666,0.00043527,2]
[321419487,1712181033425,-166.666666,0.00044682,2]
[321419489,1712181033435,-423.36,0.00044853,2]
[321419491,1712181033445,-651.04737374,0.00044952,7]
[321419493,1712181033454,-500.0,0.00044952,120]
[321419495,1712181033463,-500.0,0.00044952,120]
[321419497,1712181033473,-500.0,0.00044952,120]
[321419498,1712181033482,-500.0,0.00044952,120]
[321419499,1712181033491,-413.12012643,0.00044952,120]
[321419500,1712181033502,-12406.86243443,0.00044953,14]
[321419501,1712181033511,-12468.14414971,0.00044955,15]
[321419502,1712181033520,-667.76007839,0.00044998,4]
[321419503,1712181033529,-156.53322923,0.00044998,4]
[321419504,1712181033538,-159.97597889,0.00044998,4]
[321419505,1712181033548,-668.876525,0.00044998,4]
[321419506,1712181033557,-167.00054596,0.00044998,4]
[321419507,1712181033567,-1677.17937818,0.00044998,4]
[321419508,1712181033577,-1013.4829352,0.00044998,4]
[321419509,1712181033587,-216.45940751,0.00044998,4]
[321419510,1712181033596,-595.06776733,0.00044999,2]
[321419511,1712181033606,-475.95078821,0.00044999,120]
[321419512,1712181033615,-501.08771909,0.00044999,120]
[321419513,1712181033626,-500.0,0.00044999,120]
[321419514,1712181033636,-34957.85968543,0.00045,30]
[321419515,1712181033646,-397.20277038,0.00045,120]
[321419516,1712181033656,-150.13803641,0.00045085,30]
[321419517,1712181033666,-423.36,0.00045537,2]
[321419518,1712181033674,-166.666666,0.00045838,2]
[321419519,1712181033684,-423.36,0.00046222,2]
[321419520,1712181033693,-150.13803641,0.00046949,30]
[321419521,1712181033702,-166.666666,0.00046993,2]
[321419522,1712181033711,-548.66,0.00047589,2]
[321419523,1712181033720,-175682.91948695,0.00047689,5]
[321419524,1712181033729,-2646.71924821,0.0004769,3]
[321419525,1712181033739,-82173.76975619,0.0004769,120]
[321419526,1712181033748,-166.666666,0.00048148,2]
[321419527,1712181033757,-150.98490151,0.00048472,2]
[321419528,1712181033766,-250.46583342,0.00048472,2]
[321419529,1712181033776,-220.742114,0.00048767,2]
[321419530,1712181033785,-1621.39201515,0.000489,2]
[321419531,1712181033794,-3363.99318723,0.00049,120]
[321419532,1712181033803,-486832.50051346,0.00049,30]
[321419546,1712181038298,-423.36,0.00046906,2]
[321419547,1712181038308,-172.4721696,0.0004759,2]
[321419571,1712181276618,-12000.0,0.0002877,2]
[321419572,1712181276719,-8528.07179393,0.0002877,2]
[321420131,1712181951051,-237.46742303,0.0002667,2]
[321420132,1712181951152,-4.84627394,0.0002667,2]
[321420361,1712182232482,-1850.0,0.00031669,4]
[321420415,1712182238520,-4479.23669406,0.00031669,4]
[321421111,1712182243668,-965.72699558,0.00031669,4]
[321421112,1712182243679,-242.31369697,0.0003167,2]
[321421113,1712182243690,-242.31369697,0.0003667,2]
[321421114,1712182243700,-171.45299543,0.00038925,2]
[321421116,1712182243711,-183.0,0.00039026,2]
[321421118,1712182243721,-400.0,0.00039097,3]
[321421120,1712182243731,-400.0,0.00039097,5]
[321421122,1712182243741,-1562.09906558,0.00039098,9]
[321421124,1712182243752,-256.81815355,0.00039198,4]
[321421127,1712182243763,-300.0,0.000397,20]
[321421129,1712182243773,-320.54752141,0.000399,2]
[321421131,1712182243783,-169.753174,0.00039991,2]
[321421133,1712182243792,-8781.13713631,0.00039991,2]
[321428901,1712183031644,152.37295998,0.00044035,51]
[321428902,1712183032495,152.37295998,0.00044035,51]
[321428903,1712183124446,902.0,0.00044035,30]